fUSD/lending_fUSD_20251017
["ID","MTS","AMOUNT","RATE_DAILY","PERIOD"]
[391700018,1760733057393,-500.0,0.00044657,120]
[391700020,1760733057402,-500.0,0.00044657,120]
[391700022,1760733057412,-500.0,0.00044657,120]
[391700024,1760733057421,-500.0,0.00044657,120]
[391700026,1760733057431,-500.0,0.00044657,120]
[391700028,1760733057440,-500.0,0.00044657,14]
[391700030,1760733057450,-500.0,0.00044657,120]
[391700032,1760733057459,-500.0,0.00044657,120]
[391700034,1760733057469,-2100.1,0.00044657,120]
[391700036,1760733057479,-500.0,0.00044657,7]
[391700038,1760733057489,-500.0,0.00044657,120]
[391700040,1760733057499,-397.1,0.00044657,120]
[391700042,1760733057508,-500.0,0.00044657,120]
[391700044,1760733057518,-290.64,0.00044657,120]
[391700046,1760733057528,-500.0,0.00044657,120]
[391700048,1760733057539,-711.03,0.00044657,120]
[391700050,1760733057550,-300.0,0.00044657,2]
[391700052,1760733057559,-500.0,0.00044657,120]
[391700054,1760733057569,-500.0,0.00044657,120]
[391700056,1760733057580,-500.0,0.00044657,120]
[391700058,1760733057593,-500.0,0.00044657,2]
[391700060,1760733057605,-500.0,0.00044657,120]
[391700063,1760733057616,-500.0,0.00044657,120]
[391700065,1760733057625,-500.0,0.00044657,120]
[391700067,1760733057636,-500.0,0.00044657,120]
[391700069,1760733057646,-500.0,0.00044657,120]
[391700071,1760733057655,-500.0,0.00044657,120]
[391700073,1760733057665,-500.0,0.00044657,120]
[391700075,1760733057674,-500.0,0.00044657,120]
[391700077,1760733057684,-500.0,0.00044657,120]
[391700079,1760733057694,-500.0,0.00044657,120]
[391700081,1760733057703,-500.0,0.00044657,120]
[391700083,1760733057712,-166.66,0.00044665,30]
[391700085,1760733057722,-500.0,0.00044684,30]
[391700087,1760733057731,-154.0,0.000447,120]
[391700089,1760733057741,-150.0,0.00044705,30]
[391700091,1760733057750,-150.0,0.00044739,30]
[391700093,1760733057759,-150.0,0.0004475,30]
[391700095,1760733057770,-150.0,0.0004478,30]
[391700097,1760733057779,-756.02826367,0.000448,30]
[391700099,1760733057792,-151.0,0.000448,120]
[391700101,1760733057801,-500.0,0.00044813,120]
[391700103,1760733057811,-150.0,0.00044819,30]
[391700105,1760733057821,-828.368428,0.00044825,2]
[391700107,1760733057834,-150.0,0.00044826,30]
[391700109,1760733057844,-2419.72033,0.0004485,25]
[391700112,1760733057854,-500.0,0.00044872,120]
[391700113,1760733057864,-500.0,0.00044872,120]
[391700116,1760733057875,-500.0,0.00044872,120]
[391700118,1760733057884,-500.0,0.00044872,120]
[391700120,1760733057894,-500.0,0.00044872,120]
[391700122,1760733057903,-304.54965627,0.0004489,120]
[391700124,1760733057912,-168.0,0.00044896,7]
[391700126,1760733057922,-400.0,0.000449,16]
[391700128,1760733057931,-150.0,0.00044914,30]
[391700130,1760733057940,-500.0,0.0004493,60]
[391700132,1760733057950,-500.0,0.0004493,120]
[391700134,1760733057959,-500.0,0.0004493,120]
[391700136,1760733057968,-500.0,0.00044931,120]
[391700138,1760733057977,-211.88,0.00044931,120]
[391700140,1760733057990,-500.0,0.00044931,120]
[391700142,1760733057999,-500.0,0.00044931,120]
[391700144,1760733058009,-500.0,0.00044931,120]
[391700146,1760733058018,-500.0,0.00044931,120]
[391700148,1760733058028,-500.0,0.00044931,120]
[391700150,1760733058037,-500.0,0.00044931,120]
[391700152,1760733058047,-500.0,0.00044931,120]
[391700154,1760733058056,-500.0,0.00044931,120]
[391700156,1760733058066,-500.0,0.00044931,120]
[391700158,1760733058076,-500.0,0.00044931,2]
[391700160,1760733058086,-150.99711564,0.00044931,120]
[391700162,1760733058096,-268.16,0.00044931,120]
[391700164,1760733058105,-500.0,0.00044931,120]
[391700166,1760733058114,-500.0,0.00044931,120]
[391700168,1760733058124,-500.0,0.00044931,120]
[391700170,1760733058134,-500.0,0.00044931,120]
[391700172,1760733058144,-500.0,0.00044931,120]
[391700174,1760733058154,-500.0,0.00044931,120]
[391700176,1760733058163,-1000.0,0.00044931,120]
[391700178,1760733058172,-500.0,0.00044931,120]
[391700180,1760733058182,-500.0,0.00044931,120]
[391700182,1760733058195,-503.14608184,0.00044931,120]
[391700184,1760733058204,-500.0,0.00044931,120]
[391700186,1760733058214,-500.0,0.00044931,120]
[391700188,1760733058223,-500.0,0.00044931,14]
[391700190,1760733058233,-500.0,0.00044931,120]
[391700191,1760733058242,-2100.1,0.00044931,120]
[391700192,1760733058251,-500.0,0.00044931,7]
[391700193,1760733058260,-500.0,0.00044931,120]
[391700194,1760733058269,-500.0,0.00044931,120]
[391700195,1760733058278,-500.0,0.00044931,120]
[391700196,1760733058287,-711.03,0.00044931,120]
[391700197,1760733058296,-500.0,0.00044931,120]
[391700198,1760733058307,-554.93,0.00044931,120]
[391700200,1760733058317,-500.0,0.00044931,2]
[391700202,1760733058327,-201.93736586,0.00044931,120]
[391700204,1760733058336,-500.0,0.00044931,120]
[391700207,1760733058348,-500.0,0.00044931,120]
[391700209,1760733058358,-500.0,0.00044931,120]
[391700211,1760733058368,-500.0,0.00044931,120]
[391700213,1760733058377,-500.0,0.00044931,120]
[391700215,1760733058390,-500.0,0.00044931,120]
[391700217,1760733058399,-500.0,0.00044931,120]
[391700219,1760733058409,-500.0,0.00044931,120]
[391700221,1760733058418,-500.0,0.00044931,120]
[391700223,1760733058428,-150.0,0.00044943,30]
[391700225,1760733058437,-150.0,0.00044943,30]
[391700227,1760733058447,-150.0,0.00044943,30]
[391700229,1760733058456,-150.0,0.00044943,30]
[391700231,1760733058466,-500.0,0.00044958,30]
[391700233,1760733058475,-10118.65,0.0004499,120]
[391700235,1760733058485,-500.0,0.0004499,120]
[391700237,1760733058495,-150.0,0.0004499,120]
[391700239,1760733058504,-150.0,0.0004499,120]
[391700241,1760733058514,-48357.25656197,0.0004499,2]
[391700243,1760733058523,-151.0,0.0004499,120]
[391700246,1760733058534,-3720.645209,0.0004499,120]
[391700248,1760733058546,-3720.645209,0.0004499,120]
[391700249,1760733058556,-3720.645209,0.0004499,120]
[391700251,1760733058566,-663.926566,0.0004499,120]
[391700253,1760733058575,-3720.645209,0.0004499,120]
[391700256,1760733058585,-663.926566,0.0004499,120]
[391700278,1760733058797,-663.926566,0.0004499,120]
[391700280,1760733058807,-151.0,0.0004499,120]
[391700282,1760733058817,-151.0,0.0004499,120]
[391700284,1760733058825,-663.926566,0.0004499,120]
[391700286,1760733058834,-151.0,0.0004499,120]
[391700288,1760733058845,-5482.815337,0.0004499,120]
[391700291,1760733058856,-5482.815337,0.0004499,120]
[391700293,1760733058866,-5482.815337,0.0004499,120]
[391700295,1760733058875,-151.0,0.0004499,120]
[391700297,1760733058884,-250.695782,0.0004499,120]
[391700299,1760733058894,-5482.815337,0.0004499,120]
[391700300,1760733058903,-250.695782,0.0004499,120]
[391700303,1760733058913,-151.0,0.0004499,120]
[391700304,1760733058923,-151.0,0.0004499,120]
[391700306,1760733058932,-151.0,0.0004499,120]
[391700308,1760733058943,-250.695782,0.0004499,120]
[391700310,1760733058952,-151.0,0.0004499,120]
[391700312,1760733058961,-250.695782,0.0004499,120]
[391700314,1760733058970,-741.469166,0.0004499,120]
[391700316,1760733058980,-151.0,0.0004499,120]
[391700318,1760733058990,-741.469166,0.0004499,120]
[391700320,1760733058999,-972.62092,0.0004499,120]
[391700322,1760733059009,-741.469166,0.0004499,120]
[391700324,1760733059018,-972.62092,0.0004499,120]
[391700326,1760733059027,-741.469166,0.0004499,120]
[391700328,1760733059036,-972.62092,0.0004499,120]
[391700330,1760733059046,-151.0,0.0004499,120]
[391700332,1760733059055,-972.62092,0.0004499,120]
[391700334,1760733059065,-151.0,0.0004499,120]
[391700337,1760733059074,-359.280629,0.0004499,120]
[391700339,1760733059084,-151.0,0.0004499,120]
[391700341,1760733059094,-151.0,0.0004499,120]
[391700343,1760733059104,-359.280629,0.0004499,120]
[391700345,1760733059117,-151.0,0.0004499,120]
[391700347,1760733059126,-359.280629,0.0004499,120]
[391700349,1760733059135,-151.0,0.0004499,120]
[391700351,1760733059145,-359.280629,0.0004499,120]
[391700353,1760733059154,-166.04712,0.0004499,120]
[391700355,1760733059164,-151.0,0.0004499,120]
[391700357,1760733059174,-151.0,0.0004499,120]
[391700359,1760733059184,-151.0,0.0004499,30]
[391700361,1760733059195,-151.0,0.0004499,30]
[391700363,1760733059205,-218.027628,0.0004499,20]
[391700365,1760733059214,-218.027628,0.0004499,20]
[391700368,1760733059224,-218.027628,0.0004499,20]
[391700369,1760733059233,-218.027628,0.0004499,20]
[391700372,1760733059243,-711.887367,0.0004499,120]
[391700374,1760733059253,-342.892241,0.0004499,120]
[391700376,1760733059262,-711.887367,0.0004499,120]
[391700378,1760733059272,-342.892241,0.0004499,120]
[391700380,1760733059281,-711.887367,0.0004499,120]
[391700382,1760733059291,-342.892241,0.0004499,120]
[391700384,1760733059300,-711.887367,0.0004499,120]
[391700386,1760733059312,-151.0,0.0004499,120]
[391700388,1760733059322,-342.892241,0.0004499,120]
[391700390,1760733059332,-151.0,0.0004499,120]
[391700392,1760733059341,-194.446126,0.0004499,120]
[391700394,1760733059351,-211.970065,0.0004499,120]
[391700396,1760733059361,-211.970065,0.0004499,120]
[391700398,1760733059370,-211.970065,0.0004499,120]
[391700400,1760733059380,-211.970065,0.0004499,120]
[391700402,1760733059389,-1000.0,0.00044994,16]
[391700404,1760733059399,-1000.0,0.00044994,16]
[391700406,1760733059409,-1000.0,0.00044994,16]
[391700408,1760733059419,-1000.0,0.00044994,16]
[391700410,1760733059427,-1000.0,0.00044994,16]
[391700412,1760733059436,-1000.0,0.00044994,16]
[391700414,1760733059446,-1000.0,0.00044994,16]
[391700416,1760733059456,-1000.0,0.00044994,16]
[391700418,1760733059465,-1000.0,0.00044994,32]
[391700420,1760733059475,-177.804928,0.00044998,120]
[391700423,1760733059484,-177.804928,0.00044998,120]
[391700425,1760733059494,-670.971821,0.00044998,120]
[391700426,1760733059506,-177.804928,0.00044998,120]
[391700427,1760733059516,-670.971821,0.00044998,120]
[391700428,1760733059525,-177.804928,0.00044998,120]
[391700429,1760733059535,-151.0,0.00044998,120]
[391700430,1760733059546,-670.971821,0.00044998,120]
[391700431,1760733059555,-670.971821,0.00044998,120]
[391700432,1760733059565,-300.528512,0.00044998,120]
[391700434,1760733059575,-154.421392,0.00044998,120]
[391700436,1760733059584,-154.421392,0.00044998,120]
[391700438,1760733059595,-680.599913,0.00044998,120]
[391700440,1760733059605,-154.421392,0.00044998,120]
[391700442,1760733059614,-240.774713,0.00044998,120]
[391700444,1760733059624,-680.599913,0.00044998,120]
[391700446,1760733059633,-151.0,0.00044998,120]
[391700448,1760733059643,-154.421392,0.00044998,120]
[391700450,1760733059652,-283.832494,0.00044998,120]
[391700452,1760733059661,-240.774713,0.00044998,120]
[391700454,1760733059671,-680.599913,0.00044998,120]
[391700456,1760733059680,-240.774713,0.00044998,120]
[391700458,1760733059690,-283.832494,0.00044998,120]
[391700460,1760733059699,-680.599913,0.00044998,120]
[391700462,1760733059713,-193.9679,0.00044998,120]
[391700464,1760733059722,-151.0,0.00044998,120]
[391700467,1760733059732,-240.774713,0.00044998,120]
[391700469,1760733059742,-193.9679,0.00044998,120]
[391700470,1760733059751,-283.832494,0.00044998,120]
[391700473,1760733059760,-292.436263,0.00044998,120]
[391700475,1760733059771,-193.9679,0.00044998,120]
[391700477,1760733059781,-283.832494,0.00044998,120]
[391700479,1760733059790,-151.0,0.00044998,120]
[391700481,1760733059800,-193.9679,0.00044998,120]
[391700483,1760733059809,-300.751597,0.00044998,120]
[391700485,1760733059819,-300.751597,0.00044998,120]
[391700487,1760733059830,-151.0,0.00044998,120]
[391700489,1760733059840,-546.671033,0.00044998,30]
[391700491,1760733059850,-1000.0,0.00044998,120]
[391700493,1760733059859,-151.0,0.00044999,14]
[391700495,1760733059869,-180.0,0.00044999,120]
[391700497,1760733059879,-180.0,0.00044999,120]
[391700499,1760733059888,-180.0,0.00044999,120]
[391700501,1760733059898,-245.26442753,0.00044999,120]
[391700503,1760733059908,-600.0,0.00045,120]
[391700505,1760733059921,-28498.04769139,0.00045,10]
[391700507,1760733059930,-200.0,0.00045,120]
[391700509,1760733059940,-30354.19168041,0.00045,2]
[391700511,1760733059949,-1001.06401798,0.00045,120]
[391700513,1760733059959,-2387.79226536,0.00045,14]
[391700515,1760733059969,-2055.52538665,0.00045,60]
[391700517,1760733059978,-164.89621663,0.00045,120]
[391700519,1760733059987,-531.90565196,0.00045,120]
[391700521,1760733059997,-20164.64830798,0.00045,120]
[391700523,1760733060006,-47488.29137284,0.00045,120]
[391700525,1760733060016,-1109.32432704,0.00045,32]
[391700527,1760733060025,-2001.49566826,0.00045,120]
[391700529,1760733060035,-1190.62575876,0.00045,120]
[391700531,1760733060046,-2693.74738169,0.00045,120]
[391700533,1760733060055,-604.30405012,0.00045,10]
[391700535,1760733060065,-156.415448,0.00045,120]
[391700537,1760733060074,-151.0,0.00045,120]
[391700539,1760733060084,-151.0,0.00045,120]
[391700541,1760733060093,-151.0,0.00045,120]
[391700544,1760733060106,-151.0,0.00045,120]
[391700546,1760733060116,-151.0,0.00045,120]
[391700548,1760733060126,-151.0,0.00045,120]
[391700550,1760733060136,-151.0,0.00045,120]
[391700552,1760733060145,-201.739994,0.00045,120]
[391700554,1760733060155,-201.739994,0.00045,120]
[391700556,1760733060164,-887.215651,0.00045,120]
[391700558,1760733060173,-201.739994,0.00045,120]
[391700560,1760733060183,-201.739994,0.00045,120]
[391700562,1760733060193,-887.215651,0.00045,120]
[391700564,1760733060203,-887.215651,0.00045,120]
[391700566,1760733060212,-887.215651,0.00045,120]
[391700568,1760733060222,-164.573965,0.00045,120]
[391700570,1760733060232,-151.0,0.00045,120]
[391700572,1760733060241,-151.0,0.00045,120]
[391700574,1760733060251,-377.028455,0.00045,120]
[391700576,1760733060260,-151.0,0.00045,120]
[391700578,1760733060270,-151.0,0.00045,120]
[391700580,1760733060279,-280.345504,0.00045,120]
[391700582,1760733060288,-377.028455,0.00045,120]
[391700584,1760733060298,-280.345504,0.00045,120]
[391700586,1760733060308,-377.028455,0.00045,120]
[391700588,1760733060318,-280.345504,0.00045,120]
[391700590,1760733060327,-377.028455,0.00045,120]
[391700592,1760733060337,-280.345504,0.00045,120]
[391700594,1760733060346,-151.0,0.00045,120]
[391700596,1760733060356,-290.720875,0.00045,120]
[391700598,1760733060365,-5079.59,0.00045,120]
[391700600,1760733060374,-151.0,0.00045,120]
[391700602,1760733060384,-150.0,0.00045002,30]
[391700604,1760733060394,-150.0,0.00045005,30]
[391700606,1760733060403,-150.0,0.00045025,30]
[391700608,1760733060413,-150.0,0.0004504,30]
[391700610,1760733060422,-150.0,0.00045063,30]
[391700612,1760733060430,-500.0,0.00045087,120]
[391700614,1760733060440,-150.0,0.0004509,30]
[391700616,1760733060449,-150.0,0.00045098,30]
[391700618,1760733060458,-1500.0,0.000451,2]
[391700620,1760733060467,-500.0,0.00045146,120]
[391700622,1760733060477,-500.0,0.00045146,120]
[391700624,1760733060487,-500.0,0.00045146,120]
[391700627,1760733060503,-500.0,0.00045146,120]
[391700629,1760733060515,-500.0,0.00045146,120]
[391700631,1760733060524,-5000.0,0.00045147,120]
[391700633,1760733060534,-2444.5411,0.0004516,10]
[391700635,1760733060547,-55555.0,0.0004516,120]
[391700637,1760733060556,-150.0,0.00045165,30]
[391700639,1760733060566,-166.66,0.00045171,2]
[391700641,1760733060575,-150.0,0.00045177,30]
[391700643,1760733060586,-150.0,0.00045191,30]
[391700646,1760733060595,-828.368429,0.00045197,2]
[391700648,1760733060606,-210.63051936,0.00045204,60]
[391700650,1760733060617,-500.0,0.00045204,120]
[391700652,1760733060626,-500.0,0.00045204,120]
[391700654,1760733060636,-500.0,0.00045205,120]
[391700656,1760733060645,-500.0,0.00045205,120]
[391700658,1760733060657,-500.0,0.00045205,120]
[391700660,1760733060667,-289.83243189,0.00045205,2]
[391700661,1760733060677,-150.0,0.00045205,2]
[391700662,1760733060687,-500.0,0.00045205,2]
[391700663,1760733060696,-775.0,0.00045205,2]
[391700664,1760733060705,-500.0,0.00045205,2]
[391700665,1760733060715,-150.81914312,0.00045205,2]
[391700666,1760733060724,-500.0,0.00045205,2]
[391700667,1760733060734,-500.0,0.00045205,2]
[391700669,1760733060743,-500.0,0.00045205,2]
[391700671,1760733060753,-548.0,0.00045205,2]
[391700673,1760733060763,-300.0,0.00045205,2]
[391700675,1760733060772,-150.0,0.00045205,2]
[391700677,1760733060782,-500.0,0.00045205,2]
[391700679,1760733060792,-500.0,0.00045205,2]
[391700681,1760733060802,-1988.0,0.00045205,2]
[391700684,1760733060811,-500.0,0.00045205,120]
[391700686,1760733060821,-500.0,0.00045205,2]
[391700688,1760733060830,-500.0,0.00045205,2]
[391700690,1760733060843,-500.0,0.00045205,120]
[391700692,1760733060853,-1664.0,0.00045205,2]
[391700694,1760733060862,-500.0,0.00045205,2]
[391700696,1760733060871,-150.0,0.00045205,2]
[391700698,1760733060880,-150.0,0.00045205,2]
[391700700,1760733060890,-500.0,0.00045205,2]
[391700702,1760733060900,-489.0,0.00045205,2]
[391700704,1760733060910,-500.0,0.00045205,2]
[391700706,1760733060920,-150.0,0.00045205,2]
[391700708,1760733060930,-500.0,0.00045205,2]
[391700710,1760733060940,-500.0,0.00045205,120]
[391700712,1760733060949,-500.0,0.00045205,2]
[391700714,1760733060959,-500.0,0.00045205,2]
[391700716,1760733060968,-150.0,0.00045205,2]
[391700718,1760733060978,-500.0,0.00045205,2]
[391700720,1760733060988,-500.0,0.00045205,2]
[391700722,1760733060998,-150.0,0.00045205,2]
[391700724,1760733061007,-873.0,0.00045205,2]
[391700726,1760733061016,-873.0,0.00045205,2]
[391700728,1760733061026,-592.51,0.00045205,120]
[391700730,1760733061036,-500.0,0.00045205,2]
[391700732,1760733061046,-500.0,0.00045205,120]
[391700734,1760733061056,-473.45931262,0.00045205,120]
[391700736,1760733061066,-500.0,0.00045205,120]
[391700738,1760733061076,-500.0,0.00045205,120]
[391700740,1760733061086,-500.0,0.00045205,120]
[391700742,1760733061096,-382.02764139,0.00045205,120]
[391700745,1760733061107,-431.82,0.00045205,14]
[391700746,1760733061116,-500.0,0.00045205,120]
[391700748,1760733061125,-2100.1,0.00045205,120]
[391700750,1760733061135,-500.0,0.00045205,120]
[391700752,1760733061145,-500.0,0.00045205,120]
[391700754,1760733061154,-711.03,0.00045205,120]
[391700756,1760733061165,-500.0,0.00045205,120]
[391700759,1760733061175,-500.0,0.00045205,2]
[391700761,1760733061184,-500.0,0.00045205,120]
[391700772,1760733061338,-150.0,0.00045205,2]
[391700774,1760733061359,-500.0,0.00045205,2]
[391700776,1760733061370,-500.0,0.00045205,120]
[391700778,1760733061380,-150.0,0.00045205,2]
[391700779,1760733061390,-500.0,0.00045205,120]
[391700781,1760733061400,-500.0,0.00045205,2]
[391700782,1760733061410,-500.0,0.00045205,2]
[391700784,1760733061419,-500.0,0.00045205,2]
[391700785,1760733061430,-500.0,0.00045205,120]
[391700787,1760733061439,-150.0,0.00045205,2]
[391700789,1760733061449,-500.0,0.00045205,2]
[391700790,1760733061458,-500.0,0.00045205,120]
[391700792,1760733061467,-150.0,0.00045205,2]
[391700794,1760733061476,-150.0,0.00045205,2]
[391700795,1760733061486,-500.0,0.00045205,120]
[391700797,1760733061496,-150.0,0.00045205,2]
[391700798,1760733061505,-500.0,0.00045205,2]
[391700800,1760733061515,-500.0,0.00045205,2]
[391700802,1760733061524,-500.0,0.00045205,120]
[391700803,1760733061534,-500.0,0.00045232,30]
[391700805,1760733061547,-151.0,0.00045244,120]
[391700807,1760733061556,-27628.2628365,0.00045247,2]
[391700809,1760733061566,-17898.0814561,0.00045247,2]
[391700810,1760733061575,-32506.3526417,0.00045247,2]
[391700812,1760733061585,-578648.8436034,0.00045247,2]
[391700813,1760733061594,-3038.107647,0.00045247,2]
[391700815,1760733061605,-7446.516919,0.00045247,2]
[391700817,1760733061615,-4648.0,0.00045247,7]
[391700819,1760733061624,-150.0,0.00045253,30]
[391700820,1760733061634,-150.0,0.0004526,2]
[391700822,1760733061644,-500.0,0.0004526,2]
[391700824,1760733061653,-775.0,0.0004526,2]
[391700825,1760733061662,-500.0,0.0004526,2]
[391700827,1760733061672,-500.0,0.0004526,2]
[391700829,1760733061681,-500.0,0.0004526,2]
[391700830,1760733061690,-500.0,0.0004526,2]
[391700832,1760733061699,-548.0,0.0004526,2]
[391700834,1760733061708,-300.0,0.0004526,2]
[391700835,1760733061717,-150.0,0.0004526,2]
[391700837,1760733061727,-500.0,0.0004526,2]
[391700839,1760733061736,-500.0,0.0004526,2]
[391700840,1760733061745,-1988.0,0.0004526,2]
[391700842,1760733061756,-500.0,0.0004526,2]
[391700844,1760733061765,-500.0,0.0004526,2]
[391700845,1760733061774,-1664.0,0.0004526,2]
[391700847,1760733061784,-500.0,0.0004526,2]
[391700849,1760733061793,-200.59891275,0.0004526,2]
[391700850,1760733061802,-500.0,0.0004526,2]
[391700852,1760733061811,-489.0,0.0004526,2]
[391700854,1760733061821,-500.0,0.0004526,2]
[391700855,1760733061830,-500.0,0.0004526,2]
[391700857,1760733061839,-500.0,0.0004526,2]
[391700859,1760733061849,-500.0,0.0004526,2]
[391700860,1760733061860,-873.0,0.0004526,2]
[391700862,1760733061869,-873.0,0.0004526,2]
[391700864,1760733061878,-500.0,0.0004526,2]
[391700865,1760733061888,-150.0,0.0004526,2]
[391700867,1760733061897,-500.0,0.0004526,2]
[391700869,1760733061907,-200.0,0.0004526,2]
[391700870,1760733061916,-500.0,0.0004526,2]
[391700872,1760733061926,-500.0,0.0004526,2]
[391700874,1760733061935,-500.0,0.0004526,2]
[391700875,1760733061944,-150.0,0.0004526,2]
[391700877,1760733061953,-500.0,0.0004526,2]
[391700879,1760733061962,-173.96283758,0.0004526,2]
[391700880,1760733061972,-150.0,0.0004526,2]
[391700882,1760733061981,-150.0,0.0004526,2]
[391700884,1760733061994,-578.14792994,0.0004526,2]
[391700885,1760733062004,-500.0,0.0004526,2]
[391700887,1760733062013,-150.0,0.00045265,30]
[391700889,1760733062023,-377.24,0.00045266,120]
[391700890,1760733062032,-150.0,0.0004527,30]
[391700892,1760733062042,-150.0,0.00045281,120]
[391700893,1760733062051,-5568.41,0.000453,14]
[391700894,1760733062060,-150.0,0.00045315,2]
[391700895,1760733062069,-500.0,0.00045315,2]
[391700896,1760733062078,-775.0,0.00045315,2]
[391700897,1760733062088,-500.0,0.00045315,2]
[391700898,1760733062097,-500.0,0.00045315,2]
[391700899,1760733062108,-500.0,0.00045315,2]
[391700900,1760733062117,-500.0,0.00045315,2]
[391700901,1760733062126,-548.0,0.00045315,2]
[391700902,1760733062135,-300.0,0.00045315,2]
[391700904,1760733062145,-200.82157195,0.00045315,2]
[391700906,1760733062154,-500.0,0.00045315,2]
[391700908,1760733062163,-500.0,0.00045315,2]
[391700910,1760733062173,-1988.0,0.00045315,2]
[391700912,1760733062183,-500.0,0.00045315,2]
[391700914,1760733062193,-500.0,0.00045315,2]
[391700916,1760733062203,-1664.0,0.00045315,2]
[391700918,1760733062212,-500.0,0.00045315,2]
[391700920,1760733062222,-500.0,0.00045315,2]
[391700922,1760733062231,-489.0,0.00045315,2]
[391700924,1760733062242,-500.0,0.00045315,2]
[391700926,1760733062251,-500.0,0.00045315,2]
[391700928,1760733062260,-196.19407106,0.00045315,2]
[391700930,1760733062270,-873.0,0.00045315,2]
[391700932,1760733062279,-873.0,0.00045315,2]
[391700934,1760733062288,-500.0,0.00045315,2]
[391700936,1760733062298,-150.47939638,0.00045315,2]
[391700938,1760733062307,-340.16573468,0.00045315,2]
[391700940,1760733062317,-500.0,0.00045315,2]
[391700942,1760733062326,-500.0,0.00045315,2]
[391700944,1760733062335,-500.0,0.00045315,2]
[391700946,1760733062344,-150.0,0.00045315,2]
[391700948,1760733062355,-500.0,0.00045315,2]
[391700950,1760733062364,-223.8937127,0.00045315,2]
[391700952,1760733062373,-150.0,0.00045315,2]
[391700954,1760733062382,-500.0,0.00045315,2]
[391700956,1760733062391,-150.0,0.00045331,30]
[391700958,1760733062400,-150.0,0.00045331,30]
[391700960,1760733062409,-225.68960895,0.00045344,20]
[391700962,1760733062419,-150.0,0.00045353,30]
[391700964,1760733062428,-500.0,0.00045361,120]
[391700966,1760733062439,-150.0,0.00045369,2]
[391700968,1760733062449,-500.0,0.00045369,2]
[391700970,1760733062459,-775.0,0.00045369,2]
[391700972,1760733062468,-562.82213547,0.00045369,2]
[391700974,1760733062477,-500.0,0.00045369,2]
[391700976,1760733062487,-500.0,0.00045369,2]
[391700978,1760733062496,-500.0,0.00045369,2]
[391700980,1760733062506,-548.0,0.00045369,2]
[391700982,1760733062515,-300.0,0.00045369,2]
[391700985,1760733062526,-500.0,0.00045369,2]
[391700987,1760733062537,-500.0,0.00045369,2]
[391700989,1760733062548,-1988.0,0.00045369,2]
[391700991,1760733062557,-500.0,0.00045369,2]
[391700992,1760733062566,-500.0,0.00045369,2]
[391700993,1760733062575,-1664.0,0.00045369,2]
[391700994,1760733062585,-642.75296998,0.00045369,2]
[391700995,1760733062594,-500.0,0.00045369,2]
[391700996,1760733062603,-489.0,0.00045369,2]
[391700997,1760733062612,-500.0,0.00045369,2]